Cogmind - Beta 13 @@@ ROGUE MODE // 2024.04.05 @ 11:17:55 Player: emory Result: Destroyed by G-47 Trooper with Particle Gun Performance ------------- Evolutions (2) 1000 Regions Visited (4) 800 Robots Destroyed (28) 140 Value Destroyed (715) 715 Prototype IDs (1) 20 Alien Tech Used (0) 0 Bonus (14) 14 TOTAL SCORE: 2689 Bonus ------- Follower Combat Kills 14 Cogmind --------- Core Integrity 0/550 Matter 261/300 Energy 100/100 System Corruption 0% Temperature Cool (9) Movement Core (700) Ox13 Location -8/Materials Parts ------- > --- POWER (1) -------- (None) > --- PROPULSION (4) --- (None) > --- UTILITY (4) ------ High-capacity Storage Unit > --- WEAPON (2) ------- (None) > --- INVENTORY (20) --- Airjet Weight Redist. System Mining Laser Peak State ------------ > --- POWER ------------ Deuterium Engine > --- PROPULSION ------- Light Treads Light Treads Light Treads Light Treads > --- UTILITY ---------- High-capacity Storage Unit Structural Scanner Terrain Scanner Light Armor Plating > --- WEAPON ----------- Light EM Pulse Cannon Advanced Beam Cannon > --- INVENTORY -------- Deuterium Engine Deuterium Engine Light Deuterium Engine Light Treads Light Treads Aluminum Leg Aluminum Leg Titanium Leg Airjet Weight Redist. System Medium Armor Plating Beamcaster Datajack Mining Laser Flail [Rating: 19] Favorites ----------- Power Ion Engine Engine Ion Engine Propulsion Aluminum Leg Treads Light Treads Leg Aluminum Leg Wheel Wheel Utility High-capacity Storage Unit Device Structural Scanner Storage High-capacity Storage Unit Protection Light Armor Plating Weapon Light Assault Rifle Energy Gun Particle Gun Energy Cannon Advanced Beam Cannon Ballistic Gun Light Assault Rifle Impact Weapon Flail Special Melee Weapon Datajack Build | -11 -10 -10 -9 -8 ------- Run | Yrd Mat Min Mat Mat Slots Evolved 4 | . . . 2 2 Power . | . . . . . Propulsion 2 | . . . 2 . Utility 2 | . . . . 2 Weapon . | . . . . . Parts Attached 52 | 5 7 1 19 20 Power 9 | 1 1 . 3 4 Engine 9 | 1 1 . 3 4 Core . | . . . . . Reactor . | . . . . . Propulsion 20 | 2 2 . 7 9 Treads 6 | . . . . 6 Leg 10 | 2 2 . 3 3 Wheel 4 | . . . 4 . Hover . | . . . . . Flight . | . . . . . Utility 11 | 1 2 . 5 3 Device 4 | . . . 2 2 Storage 3 | 1 2 . . . Processor . | . . . . . Hackware . | . . . . . Protection 4 | . . . 3 1 Artifact . | . . . . . Weapon 12 | 1 2 1 4 4 Energy Gun 2 | . 1 . . 1 Energy Cannon 4 | . . . 3 1 Ballistic Gun 3 | 1 . 1 1 . Ballistic Cannon . | . . . . . Launcher . | . . . . . Special Weapon . | . . . . . Impact Weapon 1 | . . . . 1 Slashing Weapon . | . . . . . Piercing Weapon . | . . . . . Special Melee Weapon 2 | . 1 . . 1 Unidentified Prototypes 1 | . . . 1 . Parts Lost 37 | . 3 . 12 22 Power 7 | . 1 . 2 4 Propulsion 15 | . . . 6 9 Utility 5 | . . . 1 4 Weapon 10 | . 2 . 3 5 Highest Loss Streak 20 | . 2 . 9 20 To Critical Strikes . | . . . . . Average Slot Usage (%) 81 | . 87 100 73 70 Engine 11 | . 12 14 10 6 Treads 2 | . . . . 22 Leg 15 | . 26 28 5 2 Wheel 7 | . . . 18 . Device 1 | . . . . 11 Storage 18 | . 24 28 12 9 Protection 1 | . . . 3 5 Energy Gun 6 | . 10 14 1 . Energy Cannon 4 | . . . 9 5 Ballistic Gun 9 | . 10 14 10 . Naked Turns . | . . . . . Heaviest Build 64 | 11 50 50 60 64 Greatest Support 80 | 20 20 20 40 80 Greatest Overweight (x) 15 | . 4 2 15 13 Average Overweight (x) 2 | . 1 2 2 . Largest Inventory Capacity 20 | 8 20 20 20 20 Average Capacity 19 | 6 19 20 20 20 Most Carried 20 | 4 11 14 20 19 Average Carried 10 | 1 6 13 13 10 Final Capacity 20 | 8 20 20 20 20 Final Carried 19 | 3 11 14 19 3 Class Distribution -------------------- 95% | Mutant 4% | Scavenger-Mutant Dominant Class ---------------- Mutant | -10/Materials Mutant | -10/Mines Mutant | -9/Materials Mutant | -8/Materials Resources | -11 -10 -10 -9 -8 ----------- Run | Yrd Mat Min Mat Mat Matter Collected 617 | 249 95 13 224 36 Remotely . | . . . . . Salvage Created 819 | . 155 34 431 199 Parts 49 | . 13 7 26 3 Haulers Intercepted . | . . . . . Recyclers Shooed . | . . . . . Parts Field Recycled . | . . . . . Retrieved Matter . | . . . . . Parts Self-Destructed . | . . . . . Prevented . | . . . . . Kills | -11 -10 -10 -9 -8 ------- Run | Yrd Mat Min Mat Mat Combat Hostiles Destroyed 24 | . 5 3 9 7 Melee 1 | . . . . 1 Guns 12 | . 5 3 4 . Cannons 7 | . . . 4 3 Classes Destroyed 6 | . 3 . 3 . Operator 1 | . . . 1 . Watcher 3 | . 1 . 2 . Swarmer 11 | . 3 3 1 4 Grunt 10 | . 2 . 5 3 Brawler 1 | . . . 1 . Sentry 2 | . . . 2 . Best Kill Streak 3 | . 3 3 2 2 Combat Bots Only 3 | . 3 3 2 2 Max Kills in Single Turn 2 | . 2 1 1 1 Gunslinging 1 | . 1 . . . Exploded . | . . . . . Melee 1 | . . . . 1 Uniques/NPCs Destroyed . | . . . . . Combat | -11 -10 -10 -9 -8 -------- Run | Yrd Mat Min Mat Mat Hostile Shots Fired 423 | . 61 5 94 263 Missed 96 | . 13 3 17 63 Damage Taken 4258 | . 543 17 943 2755 Core 848 | . 99 9 180 560 Absorbed by Shields . | . . . . . Regen/Repaired (Parts) 118 | . 118 . . . Core Remaining (%) 70 | 100 . 56 55 . Volleys Fired 132 | . 47 3 60 22 Largest 2 | . 2 2 2 1 Hottest 124 | . 85 85 124 75 Shots Fired 195 | . 58 6 109 22 Gun 143 | . 58 6 75 4 Cannon 52 | . . . 34 18 Launcher . | . . . . . Special . | . . . . . Kinetic 99 | . 39 3 57 . Thermal 92 | . 19 3 48 22 Explosive . | . . . . . Electromagnetic 4 | . . . 4 . Robot Hit Streak 11 | . 11 4 4 6 Robot Miss Streak 5 | . 5 2 4 2 Penetration Max . | . . . . . Secondary Targets 1 | . 1 . . . Max Gunslinging Chain 1 | . 1 . . . Shots Hit Robots 115 | . 34 2 56 23 Core Hits 45 | . 13 3 21 8 Critical Kills . | . . . . . Critical Parts Destroyed 3 | . . . 1 2 Critical Strikes 4 | . 1 . 1 2 Burn 1 | . 1 . . . Destroy 1 | . . . 1 . Smash 2 | . . . . 2 Melee Attacks 19 | . . . . 19 Impact 19 | . . . . 19 Slashing . | . . . . . Piercing . | . . . . . Sneak Attacks . | . . . . . Combat Hostiles . | . . . . . Follow-up Attacks . | . . . . . Damage Inflicted 1731 | . 341 56 782 552 Guns 819 | . 341 56 359 63 Cannons 647 | . . . 422 225 Explosions . | . . . . . Melee 257 | . . . . 257 Ramming 8 | . . . 1 7 Kinetic 456 | . 212 8 236 . Thermal 963 | . 129 48 498 288 Explosive . | . . . . . Electromagnetic 47 | . . . 47 . Impact 257 | . . . . 257 Slashing . | . . . . . Piercing . | . . . . . Highest Corruption 2 | . . . 2 . Average Corruption 2 | . . . 2 . Corruption Purged . | . . . . . Corruption Blocked . | . . . . . Effects 5 | . . . 5 . Message Errors 4 | . . . 4 . Misfires 1 | . . . 1 . Overload Shots . | . . . . . Overflow Damage 57 | . . . 12 45 Projectiles 12 | . . . 12 . Explosions . | . . . . . Melee 45 | . . . . 45 Knockbacks 3 | . . . . 3 Impact 3 | . . . . 3 Kinetic . | . . . . . Secondary . | . . . . . Self-Inflicted Damage . | . . . . . Shots . | . . . . . Rammed 1 | . . . 1 . Targets Rammed 5 | . . . 1 4 Kicked 4 | . . . . 4 Crushed . | . . . . . Highest Temperature 554 | . 226 92 554 432 Average Temperature 159 | . 87 49 191 168 Received Heat Transfer 1728 | . 198 . 486 1044 Effects 17 | . 2 . 13 2 Shutdowns 3 | . . . 2 1 Energy Bleed 2 | . . . 1 1 Interference 4 | . 2 . 2 . Matter Decay 1 | . . . 1 . Short Circuit 2 | . . . 2 . Damage (minor) 3 | . . . 3 . Damage (major) 2 | . . . 2 . Siege Activations . | . . . . . Robots Corrupted . | . . . . . Combat Hostiles . | . . . . . Parts Fried 4 | . . . . 4 Impact Corruptions 6 | . . . . 6 Robots Melted 1 | . . . 1 . Combat Hostiles 1 | . . . 1 . Parts Melted 3 | . . 1 1 1 Heat Transferred 1961 | . 370 111 962 518 Parts Sabotaged . | . . . . . Parts Stolen . | . . . . . Parts Stripped . | . . . . . Power Chain Reactions . | . . . . . Alert | -11 -10 -10 -9 -8 ------- Run | Yrd Mat Min Mat Mat Peak Influence 212 | . 89 70 170 212 Initial 27 | . . . 27 27 Average 48 | . 29 68 43 108 Maximum Alert Level 1 | . . . . 1 Low Security (%) 98 | 100 100 100 100 88 Level 1 1 | . . . . 11 Level 2 . | . . . . . Level 3 . | . . . . . Level 4 . | . . . . . Level 5 . | . . . . . High Security . | . . . . . Max Security . | . . . . . Squads Dispatched 2 | . . . . 2 Investigation . | . . . . . Extermination . | . . . . . Reinforcement 1 | . . . . 1 Assault . | . . . . . Garrison 1 | . . . . 1 Intercept . | . . . . . Searches Triggered . | . . . . . Construction Impeded . | . . . . . Haulers Reinforced . | . . . . . Active Scanning Responses . | . . . . . Cargo Convoy Interrupts . | . . . . . Stealth | -11 -10 -10 -9 -8 --------- Run | Yrd Mat Min Mat Mat Distress Signals 6 | . 1 . 2 3 Communications Jammed . | . . . . . Distress Signals . | . . . . . Times Spotted 58 | . 10 3 19 26 Peak Tracking Total 11 | . 3 3 5 11 Tactical Retreats 4 | . . . 1 3 Traps | -11 -10 -10 -9 -8 ------- Run | Yrd Mat Min Mat Mat Traps Triggered . | . . . . . Indirectly . | . . . . . Trap Hack Attempts . | . . . . . Triggered . | . . . . . Disarmed . | . . . . . Reprogrammed . | . . . . . Reused . | . . . . . Traps Extracted . | . . . . . Installed . | . . . . . Triggered . | . . . . . Machines | -11 -10 -10 -9 -8 ---------- Run | Yrd Mat Min Mat Mat Machines Disabled 1 | . . . 1 . Max in Single Turn 1 | . . . 1 . Machines Repaired . | . . . . . Machines Dismantled . | . . . . . Machines Sabotaged . | . . . . . Overloaded Fab Kills . | . . . . . Hacking | -11 -10 -10 -9 -8 --------- Run | Yrd Mat Min Mat Mat Machines Accessed 4 | . 3 . 1 . Terminals 2 | . 2 . . . Fabricators . | . . . . . Repair Stations 2 | . 1 . 1 . Recycling Units . | . . . . . Scanalyzers . | . . . . . Garrison Access . | . . . . . Total Hacks 14 | . 11 . 3 . Successful 9 | . 7 . 2 . Failed 5 | . 4 . 1 . Catastrophic . | . . . . . Database Lockouts . | . . . . . Manual . | . . . . . Terminals 3 | . 3 . . . Fabricators . | . . . . . Repair Stations 11 | . 8 . 3 . Recycling Units . | . . . . . Scanalyzers . | . . . . . Garrison Access . | . . . . . Terminal Hacks 2 | . 2 . . . Robot Analysis 1 | . 1 . . . Zone Layout 1 | . 1 . . . Fabricator Hacks . | . . . . . Repair Station Hacks 7 | . 5 . 2 . Scan Component 4 | . 3 . 1 . Repair 3 | . 2 . 1 . Recycling Unit Hacks . | . . . . . Scanalyzer . | . . . . . Garrison Access Hacks . | . . . . . Unauthorized Hacks . | . . . . . Terminals . | . . . . . Fabricators . | . . . . . Repair Stations . | . . . . . Recycling Units . | . . . . . Scanalyzers . | . . . . . Garrison Access . | . . . . . Data Cores Recovered 1 | . . . 1 . Used . | . . . . . Hacking Detections 1 | . 1 . . . Full Trace Events 1 | . 1 . . . Feedback Events . | . . . . . Feedback Blocked . | . . . . . Robot Schematics Acquired . | . . . . . Robots Built . | . . . . . Authchips . | . . . . . Time . | . . . . . Total Robot Build Rating . | . . . . . Part Schematics Acquired . | . . . . . Parts Built . | . . . . . Authchips . | . . . . . Time . | . . . . . Total Part Build Rating . | . . . . . Parts Repaired 3 | . 2 . 1 . Time 96 | . 52 . 44 . Parts Recycled . | . . . . . Recycled Matter . | . . . . . Retrieved Matter . | . . . . . Retrieved Components . | . . . . . Parts Scanalyzed . | . . . . . Part Schematics Acquired . | . . . . . Parts Damaged . | . . . . . Bothacking | -11 -10 -10 -9 -8 ------------ Run | Yrd Mat Min Mat Mat Used RIF Installer . | . . . . . Robots Hacked . | . . . . . Non-combat . | . . . . . Combat . | . . . . . Robot Hacks Applied . | . . . . . Relay Couplers Released . | . . . . . Fabnet Peak Effective % . | . . . . . Robots Rewired . | . . . . . Allies Hacked . | . . . . . Hacks Repelled . | . . . . . Allies | -11 -10 -10 -9 -8 -------- Run | Yrd Mat Min Mat Mat Total Allies 2 | . . 2 . . Largest Group 2 | . . 2 2 . Highest-Rated Group 45 | . . 45 45 . Highest-Rated Ally 31 | . . 31 31 . Total Orders . | . . . . . Ally Attacks 8 | . . . 8 . Total Damage 84 | . . . 84 . Kills 2 | . . . 2 . Allies Corrupted . | . . . . . Allies Melted . | . . . . . Intel | -11 -10 -10 -9 -8 ------- Run | Yrd Mat Min Mat Mat Robot Analysis Total 1 | . 1 . . . Derelict Logs Recovered 1 | . . 1 . . Drone Launches . | . . . . . Drone Recoveries . | . . . . . Exploration | -11 -10 -10 -9 -8 ------------- Run | Yrd Mat Min Mat Mat Turns Passed 2601 | 55 846 334 1062 304 Spaces Moved 993 | 38 291 124 454 86 Core 61 | 7 . . 51 3 Treads 71 | . . . . 71 Legs 512 | 31 291 124 54 12 Wheels 349 | . . . 349 . Hover . | . . . . . Flight . | . . . . . Fastest Speed 50 | 50 120 260 95 160 Average Speed 212 | 107 249 260 186 201 Slowest Speed 800 | 120 400 260 800 700 Overloaded Moves . | . . . . . Propulsion Burnouts . | . . . . . Robots Hopped . | . . . . . Cave-ins Triggered . | . . . . . Exploration Rate (%) 25 | 4 47 25 36 14 Regions Visited 4 Branch Regions 1 Pre-discovered Areas . | . . . . . Known Exits Taken . | . . . . . Unknown Exits Taken 4 | 1 1 1 1 . Scrap Searched 1 | . . 1 . . Spaces Dug . | . . . . . Terrain Destroyed . | . . . . . Melee . | . . . . . Projectile . | . . . . . AOE . | . . . . . Terrain Rammed . | . . . . . Walls Destroyed . | . . . . . Machines Disabled . | . . . . . Actions | -11 -10 -10 -9 -8 --------- Run | Yrd Mat Min Mat Mat Total 1280 | 52 363 131 572 162 Wait 16 | 2 3 . 5 6 Move 989 | 37 290 123 453 86 Hop . | . . . . . Pick Up 53 | 8 15 4 24 2 Fast Attach . | . . . . . Attach 51 | 5 7 1 19 19 Detach 5 | . . . 4 1 Swap 1 | . . . . 1 Drop 9 | . 1 . 6 2 Fire 132 | . 47 3 60 22 Melee 19 | . . . . 19 Ram 1 | . . . 1 . Kick 4 | . . . . 4 Crush . | . . . . . Escape Stasis . | . . . . . Rewire . | . . . . . Trap . | . . . . . Miscellaneous . | . . . . . Route ------- -11/Scrapyard -10/Materials (discovered 2 exits: [*Min x2]) -10/Mines -9/Materials -8/Materials (discovered 1 exit: Sto) History --------- Turn | Location | Event 37 | -11/Scrapyard | Discovered new exit (range 15) 56 | -11/Scrapyard | Entered Materials 79 | -10/Materials | Discovered new exit (range 12) 291 | -10/Materials | Repaired Aluminum Leg 319 | -10/Materials | Build established: Mutant 325 | -10/Materials | Repaired Aluminum Leg 491 | -10/Materials | Discovered new exit (range 8) 902 | -10/Materials | Entered Mines 927 | -10/Mines | Discovered new exit (range 7) 1236 | -10/Mines | Entered Materials 1236 | -9/Materials | Accompanied by 2 allies 1236 | -9/Materials | Evolved 2 slots: Propulsion x2 1241 | -9/Materials | Led the pair of lost Derelicts to an unsafe place 1426 | -9/Materials | Lost 9 parts (2p4n1u2w) 1850 | -9/Materials | Repaired Broken Lgt. EM Pulse Cannon 2045 | -9/Materials | Discovered new exit (range 10) 2296 | -9/Materials | Lost 3 parts (2n1w) 2298 | -9/Materials | Entered another Materials area 2298 | -8/Materials | Evolved 2 slots: Utility x2 2299 | -8/Materials | Identified exit to Storage 2520 | -8/Materials | Garrison activated, responded to threat 2556 | -8/Materials | Core integrity fell below 50% 2589 | -8/Materials | Core integrity fell below 20% 2602 | -8/Materials | Destroyed by G-47 Trooper with Particle Gun Last Messages --------------- K-01 Serf collects debris. Kicked S-10 Pest. Slug penetrates Processing Tank. S-10 Pest destroyed. K-01 Serf collects debris. Kicked S-10 Pest. K-01 Serf collects debris. Penetrated by Slug. Kicked S-10 Pest. Deuterium Engine destroyed. Slug penetrates Y-45 Defender. K-01 Serf collects debris. S-10 Pest destroyed. Slug penetrates Y-45 Defender. Adv. Beam Cannon destroyed. Titanium Leg destroyed. Critical hit (Burn: +37). Slug penetrates Wall. K-01 Serf collects debris. Slug penetrates Wall. Map ----- +----------------------------------------------------+ | ?????????????????????????????????????????????????? | | ?????????????????????????????????????????????????? | | ?????????????????????????????????????????????????? | | ?????????????????????????????????????????????????? | | ????????????????????????????????????????????#????? | | ??????????????????????????????? ?????????????????? | | ?????????????????????????????????????????????????? | | ????????????????????????#########################? | | ????????????????????????########################## | | ?????????????????#?????? ### | | ?????????????????# ????? | | ?????????????????# ????? | | ?????????????????# ????????? """ | | ?????????????????? ??? ???? ?? ? """ | | ??????????????#####+#################! """ ### | | ??????????????# ############# ### | | ??????????????# *#= %# = ##? | | ??????????????# %+%[ """ # """ ##? | | ??????????????# #% "" "" # """ | | ??????????????# # """ =% +% """ #### | | ??????????????# # """ [ # #### | | ??????????????# #] " # ##?? | | ??????????????# # %# ##?? | | ??????????????#########g############# " " ##?? | | ????????????????????# ########### "G" ## ? | | ????????????????????# @ kw " # ? | | ????????????????????# + ? | | ????????????????????# k # ? | | ????????????????????# ################## # ? | | ????????????????????## ##???????"""" # # ? | | ?????????????????????# #???#???"???????? ? # ? | | ?????????????????????# #??#????"????? ???? ##? | | ?????????????????????# #???????? ????????? ? | | ????????????????????? #?????? ????????????????? | | ????????????????????? #???????????????????????? | | ???????????????????? #???????????????????????? | | ????????????????????## ????????????????????????? | | ?????????????????????# ????????????????????????? | | ?????????????????????# ????????????????????????? | | ?????????????????????####????????????????????????? | | ?????????????????????????????????????????????????? | | ?????????????????????????????????????????????????? | | ?????????????????????????????????????????????????? | | ?????????????????????????????????????????????????? | | ?????????????????????????????????????????????????? | | ?????????????????????????????????????????????????? | | ?????????????????????????????????????????????????? | | ?????????????????????????????????????????????????? | | ?????????????????????????????????????????????????? | | ?????????????????????????????????????????????????? | +----------------------------------------------------+ Best States ------------- Heat Dissipation 38 Energy Generation 14 Energy Capacity 350 Matter Stores 300 Matter Capacity 300 Sight Range 16 Terrain Scan Range 14 Terrain Scan Density 10 Armor Coverage 225 Evasion (%) 55 Recoil Reduction 4 Item Schematics ----------------- None Robot Schematics ------------------ None Fabricated ------------ Nothing Alien Tech Used ----------------- None Achievements -------------- It's Just You Part-time Mechanic Challenges ------------ None Game ------ Seed CloakingGrenadePendant Manual? 0 Play Time 00:45:08 Cumulative 5.0 hours Start 2024.04.05 @ 08:43:05 End 2024.04.05 @ 11:17:55 Sessions 3 Manual Loads 0 Difficulty Rogue Special Mode None Game No. 11 Rogue 11 Adventurer 0 Explorer 0 Win Type - Total 0 Types 0/0/0/0/0/0/0/0/0 Lore% 3 Gallery% 8 Achievement% 7 Wizard Run 0 Options --------- Layout 1 ASCII 1 Keyboard 0 Movement Vi Keybinds 0 Fullscreen 1 Font 16/SmallcapsGlow Map View 50x35 Zoom Use 0% Tactical HUD 0 Map Filters NONE Filters NONE Steam SD RUN: c4e7a70e-8563-48e6-9f5a-fe392eb6a5c2